[Event "*** Titled Tuesday Blitz"]
[Site "Chess.com"]
[Date "2020.02.04"]
[Round "7"]
[White "WeAintSurePal"]
[Black "BabyBoss31"]
[Result "1/2-1/2"]
[WhiteElo "2415"]
[BlackElo "2208"]
[TimeControl "180+2"]
[EndTime "10:34:02 PST"]
[Termination "Game drawn by agreement"]

1. d4 {[%clk 0:03:01.9]} 1... d5 {[%clk 0:03:00.9]} 2. Nc3 {[%clk 0:03:01.8]}
2... Nf6 {[%clk 0:02:55.8]} 3. Bf4 {[%clk 0:03:00.9]} 3... c6 {[%clk 0:02:57.1]}
4. e3 {[%clk 0:03:00.9]} 4... Bf5 {[%clk 0:02:58]} 5. Bd3 {[%clk 0:03:01.4]}
5... Bg6 {[%clk 0:02:58.5]} 6. Nf3 {[%clk 0:03:00.3]} 6... e6 {[%clk 0:02:59.6]}
7. Ne5 {[%clk 0:03:01]} 7... Bd6 {[%clk 0:03:00.6]} 8. h4 {[%clk 0:02:45.3]}
8... Qc7 {[%clk 0:02:55.8]} 9. a3 {[%clk 0:02:35.7]} 9... Nbd7 {[%clk
0:02:53.9]} 10. Nxd7 {[%clk 0:02:16.4]} 10... Qxd7 {[%clk 0:02:40.6]} 11. Bxd6
{[%clk 0:02:14.9]} 11... Qxd6 {[%clk 0:02:41.8]} 12. h5 {[%clk 0:01:56.2]} 12...
Bxd3 {[%clk 0:02:41.4]} 13. Qxd3 {[%clk 0:01:58.1]} 13... e5 {[%clk 0:02:29.7]}
14. O-O-O {[%clk 0:01:54.8]} 14... e4 {[%clk 0:02:28.4]} 15. Qe2 {[%clk
0:01:55.6]} 15... O-O-O {[%clk 0:02:28.9]} 16. g4 {[%clk 0:01:53]} 16... h6
{[%clk 0:02:23.8]} 17. Rdg1 {[%clk 0:01:51.3]} 17... Nh7 {[%clk 0:02:20]} 18. f3
{[%clk 0:01:48.7]} 18... exf3 {[%clk 0:02:16.1]} 19. Qxf3 {[%clk 0:01:50.6]}
19... Ng5 {[%clk 0:02:17.5]} 20. Qf5+ {[%clk 0:01:46]} 20... Qe6 {[%clk
0:02:03.8]} 21. Re1 {[%clk 0:01:41]} 21... Rde8 {[%clk 0:02:01.1]} 22. Rhf1
{[%clk 0:01:35.9]} 22... Qxf5 {[%clk 0:01:58.7]} 23. Rxf5 {[%clk 0:01:37.8]}
23... f6 {[%clk 0:01:57.7]} 24. Rf2 {[%clk 0:01:32.7]} 24... Ne4 {[%clk
0:01:54.9]} 25. Nxe4 {[%clk 0:01:33.1]} 25... Rxe4 {[%clk 0:01:56.8]} 26. Rg2
{[%clk 0:01:29.3]} 26... Rhe8 {[%clk 0:01:57.6]} 27. Kd2 {[%clk 0:01:29.9]}
27... R8e7 {[%clk 0:01:47.9]} 28. Rg3 {[%clk 0:01:28.7]} 28... Kd7 {[%clk
0:01:45.9]} 29. Rf1 {[%clk 0:01:29.8]} 29... Ke8 {[%clk 0:01:44.6]} 30. Rf4
{[%clk 0:01:30.4]} 30... Kf7 {[%clk 0:01:34.3]} 31. Rxe4 {[%clk 0:01:28.1]}
31... Rxe4 {[%clk 0:01:36.2]} 32. Ke2 {[%clk 0:01:27.6]} 32... g6 {[%clk
0:00:57.7]} 33. hxg6+ {[%clk 0:01:19.1]} 33... Kxg6 {[%clk 0:00:59.6]} 34. Kf3
{[%clk 0:01:20]} 34... Re7 {[%clk 0:00:58.5]} 35. Rh3 {[%clk 0:01:18.8]} 35...
Kg5 {[%clk 0:00:55.8]} 36. Rh5+ {[%clk 0:01:18.7]} 36... Kg6 {[%clk 0:00:56.9]}
37. b3 {[%clk 0:01:18.5]} 37... Rf7 {[%clk 0:00:52.7]} 38. Rf5 {[%clk
0:01:16.1]} 38... Re7 {[%clk 0:00:51.1]} 39. Rh5 {[%clk 0:01:16.3]} 39... Rf7
{[%clk 0:00:51.7]} 1/2-1/2

[Event "*** Titled Tuesday Blitz"]
[Site "Chess.com"]
[Date "2020.02.04"]
[Round "7"]
[White "Atanejhad"]
[Black "GelmanAlexander"]
[Result "1-0"]
[WhiteElo "2603"]
[BlackElo "2455"]
[TimeControl "180+2"]
[EndTime "10:34:23 PST"]
[Termination "Atanejhad won by checkmate"]

1. e4 {[%clk 0:03:01.9]} 1... c5 {[%clk 0:02:59.6]} 2. Nf3 {[%clk 0:03:03]} 2...
e6 {[%clk 0:02:59.7]} 3. c3 {[%clk 0:03:02.5]} 3... d5 {[%clk 0:02:58.2]} 4.
exd5 {[%clk 0:03:04.4]} 4... exd5 {[%clk 0:02:59.5]} 5. d4 {[%clk 0:03:04.9]}
5... Nc6 {[%clk 0:03:00]} 6. Bb5 {[%clk 0:03:05.7]} 6... Nf6 {[%clk 0:03:00.5]}
7. Qe2+ {[%clk 0:03:06]} 7... Be7 {[%clk 0:03:00]} 8. dxc5 {[%clk 0:03:07.2]}
8... O-O {[%clk 0:02:57]} 9. Be3 {[%clk 0:03:08.5]} 9... Bg4 {[%clk 0:02:43.4]}
10. Bxc6 {[%clk 0:03:04.5]} 10... bxc6 {[%clk 0:02:44.3]} 11. O-O {[%clk
0:03:05.9]} 11... Re8 {[%clk 0:02:41.9]} 12. h3 {[%clk 0:03:05.4]} 12... Bh5
{[%clk 0:02:41.3]} 13. Qd1 {[%clk 0:02:31.6]} 13... Rb8 {[%clk 0:02:32.2]} 14.
b4 {[%clk 0:02:27.7]} 14... a5 {[%clk 0:02:33.1]} 15. a3 {[%clk 0:02:28.4]}
15... Ne4 {[%clk 0:02:33.1]} 16. Bd4 {[%clk 0:02:21.9]} 16... f5 {[%clk
0:02:14.1]} 17. Qd3 {[%clk 0:02:08.4]} 17... Bg5 {[%clk 0:01:39.7]} 18. Ne5
{[%clk 0:01:36]} 18... Re6 {[%clk 0:01:29.3]} 19. f4 {[%clk 0:01:36.4]} 19...
Bh4 {[%clk 0:01:28.1]} 20. Nd2 {[%clk 0:01:35.7]} 20... g5 {[%clk 0:01:22.3]}
21. fxg5 {[%clk 0:01:26.9]} 21... Qxg5 {[%clk 0:01:12.8]} 22. Ndf3 {[%clk
0:01:28.1]} 22... Qg3 {[%clk 0:01:12.2]} 23. Nxh4 {[%clk 0:01:25.6]} 23... Qxh4
{[%clk 0:01:09.9]} 24. Rxf5 {[%clk 0:01:19.4]} 24... Bg6 {[%clk 0:01:04.4]} 25.
Nxg6 {[%clk 0:01:08.1]} 25... Rxg6 {[%clk 0:01:05.6]} 26. Raf1 {[%clk
0:00:58.7]} 26... Re8 {[%clk 0:00:50.5]} 27. Qf3 {[%clk 0:00:51.6]} 27... Qe7
{[%clk 0:00:45.5]} 28. Re5 {[%clk 0:00:50]} 28... Qd7 {[%clk 0:00:43.9]} 29. Qf5
{[%clk 0:00:43.9]} 29... Rd8 {[%clk 0:00:34.7]} 30. Qxd7 {[%clk 0:00:39.5]}
30... Rxd7 {[%clk 0:00:35.9]} 31. Re8# {[%clk 0:00:41.1]} 1-0

[Event "*** Titled Tuesday Blitz"]
[Site "Chess.com"]
[Date "2020.02.04"]
[Round "7"]
[White "cottage_cheese"]
[Black "BvsN"]
[Result "1-0"]
[WhiteElo "2272"]
[BlackElo "2314"]
[TimeControl "180+2"]
[EndTime "10:34:26 PST"]
[Termination "cottage_cheese won by checkmate"]

1. e4 {[%clk 0:03:01.9]} 1... c5 {[%clk 0:03:01.2]} 2. Nf3 {[%clk 0:03:02.8]}
2... e6 {[%clk 0:03:02.6]} 3. c3 {[%clk 0:03:03.2]} 3... Nf6 {[%clk 0:03:03.2]}
4. e5 {[%clk 0:03:04.2]} 4... Nd5 {[%clk 0:03:04.5]} 5. d4 {[%clk 0:03:05.9]}
5... cxd4 {[%clk 0:03:06]} 6. cxd4 {[%clk 0:03:06.1]} 6... d6 {[%clk 0:03:07.4]}
7. Bc4 {[%clk 0:02:48]} 7... Nc6 {[%clk 0:03:07]} 8. O-O {[%clk 0:02:46.9]} 8...
Nb6 {[%clk 0:03:06.7]} 9. Be2 {[%clk 0:02:41.2]} 9... Be7 {[%clk 0:03:02.1]} 10.
Nc3 {[%clk 0:02:39.1]} 10... O-O {[%clk 0:03:02.9]} 11. Be3 {[%clk 0:02:25.5]}
11... dxe5 {[%clk 0:03:02.9]} 12. dxe5 {[%clk 0:02:23.3]} 12... Nd5 {[%clk
0:02:49.6]} 13. Nxd5 {[%clk 0:02:03.6]} 13... exd5 {[%clk 0:02:51.4]} 14. Qd2
{[%clk 0:01:40.4]} 14... Bb4 {[%clk 0:02:40.9]} 15. Qd3 {[%clk 0:01:28.3]} 15...
Bg4 {[%clk 0:02:38.4]} 16. Ng5 {[%clk 0:01:17.1]} 16... f5 {[%clk 0:02:02]} 17.
exf6 {[%clk 0:01:06.5]} 17... Rxf6 {[%clk 0:01:55.3]} 18. Qxh7+ {[%clk
0:01:03.9]} 18... Kf8 {[%clk 0:01:56.2]} 19. Qh8+ {[%clk 0:00:59.5]} 19... Ke7
{[%clk 0:01:57.4]} 20. Qxg7+ {[%clk 0:01:00.4]} 20... Kd6 {[%clk 0:01:58.2]} 21.
Bxg4 {[%clk 0:00:53.5]} 21... Ne5 {[%clk 0:01:50]} 22. Be2 {[%clk 0:00:28.2]}
22... Rg6 {[%clk 0:01:40.9]} 23. Qxb7 {[%clk 0:00:24.4]} 23... Rb8 {[%clk
0:01:38.8]} 24. Nf7+ {[%clk 0:00:18.9]} 24... Nxf7 {[%clk 0:01:38.4]} 25. Qxf7
{[%clk 0:00:19.7]} 25... Qg8 {[%clk 0:01:32.9]} 26. Bf4+ {[%clk 0:00:19.5]}
26... Kc5 {[%clk 0:01:27.7]} 27. Rac1+ {[%clk 0:00:14.3]} 27... Kd4 {[%clk
0:01:29]} 28. Be3+ {[%clk 0:00:11.9]} 28... Ke5 {[%clk 0:01:25.3]} 29. Bf4+
{[%clk 0:00:10.5]} 29... Ke4 {[%clk 0:01:12.7]} 30. f3+ {[%clk 0:00:11.2]} 30...
Kd4 {[%clk 0:01:09]} 31. Rfd1+ {[%clk 0:00:11.8]} 31... Bd2 {[%clk 0:01:07.8]}
32. Rxd2# {[%clk 0:00:12.9]} 1-0

[Event "*** Titled Tuesday Blitz"]
[Site "Chess.com"]
[Date "2020.02.04"]
[Round "7"]
[White "Irishchessman16"]
[Black "czasnaszachy"]
[Result "1-0"]
[WhiteElo "2241"]
[BlackElo "2293"]
[TimeControl "180+2"]
[EndTime "10:34:41 PST"]
[Termination "Irishchessman16 won by checkmate"]

1. e4 {[%clk 0:03:00.8]} 1... c5 {[%clk 0:03:00.7]} 2. Nf3 {[%clk 0:02:55.8]}
2... d6 {[%clk 0:03:00.3]} 3. d4 {[%clk 0:02:53.1]} 3... cxd4 {[%clk 0:02:59.4]}
4. Nxd4 {[%clk 0:02:53.6]} 4... Nf6 {[%clk 0:03:00.9]} 5. Nc3 {[%clk 0:02:53.1]}
5... a6 {[%clk 0:03:02.1]} 6. h3 {[%clk 0:02:47.5]} 6... g6 {[%clk 0:02:56.2]}
7. Be3 {[%clk 0:02:40]} 7... Bg7 {[%clk 0:02:56.6]} 8. Qd2 {[%clk 0:02:40.6]}
8... b5 {[%clk 0:02:53.8]} 9. a3 {[%clk 0:02:22.1]} 9... Bb7 {[%clk 0:02:50.2]}
10. f3 {[%clk 0:02:20.7]} 10... Nc6 {[%clk 0:02:44.8]} 11. g4 {[%clk 0:02:20.1]}
11... O-O {[%clk 0:02:45.5]} 12. h4 {[%clk 0:02:19.7]} 12... Rc8 {[%clk
0:01:32.9]} 13. h5 {[%clk 0:02:19]} 13... Ne5 {[%clk 0:01:32.3]} 14. Bh6 {[%clk
0:02:09.6]} 14... Qb6 {[%clk 0:01:26.4]} 15. Bxg7 {[%clk 0:01:58.4]} 15... Kxg7
{[%clk 0:01:25.5]} 16. Be2 {[%clk 0:01:54.3]} 16... Kh8 {[%clk 0:00:56.1]} 17.
hxg6 {[%clk 0:01:19.4]} 17... fxg6 {[%clk 0:00:55.9]} 18. Ne6 {[%clk 0:01:19.5]}
18... Rg8 {[%clk 0:00:32.5]} 19. O-O-O {[%clk 0:00:39.6]} 19... b4 {[%clk
0:00:33.3]} 20. axb4 {[%clk 0:00:38.7]} 20... Qxb4 {[%clk 0:00:34.4]} 21. g5
{[%clk 0:00:38.6]} 21... Nh5 {[%clk 0:00:30.9]} 22. f4 {[%clk 0:00:38.3]} 22...
Rxc3 {[%clk 0:00:14.9]} 23. Qxc3 {[%clk 0:00:26]} 23... Qxc3 {[%clk 0:00:15.5]}
24. bxc3 {[%clk 0:00:27.1]} 24... Ng3 {[%clk 0:00:15.6]} 25. fxe5 {[%clk
0:00:27.1]} 25... Nxe2+ {[%clk 0:00:15.4]} 26. Kd2 {[%clk 0:00:27.4]} 26... Ng3
{[%clk 0:00:15.5]} 27. Rh3 {[%clk 0:00:24.4]} 27... Nxe4+ {[%clk 0:00:14.8]} 28.
Ke3 {[%clk 0:00:25.5]} 28... dxe5 {[%clk 0:00:08.7]} 29. Rxh7+ {[%clk
0:00:23.3]} 29... Kxh7 {[%clk 0:00:09.8]} 30. Rh1# {[%clk 0:00:24.6]} 1-0

[Event "*** Titled Tuesday Blitz"]
[Site "Chess.com"]
[Date "2020.02.04"]
[Round "7"]
[White "petrpalachev"]
[Black "GMHess"]
[Result "1-0"]
[WhiteElo "2669"]
[BlackElo "2756"]
[TimeControl "180+2"]
[EndTime "10:34:54 PST"]
[Termination "petrpalachev won by resignation"]

1. d4 {[%clk 0:02:58]} 1... g6 {[%clk 0:02:39.9]} 2. c4 {[%clk 0:02:57.3]} 2...
Bg7 {[%clk 0:02:41]} 3. e4 {[%clk 0:02:58.9]} 3... d6 {[%clk 0:02:41.5]} 4. Nc3
{[%clk 0:02:49.6]} 4... e5 {[%clk 0:02:39.4]} 5. d5 {[%clk 0:02:48.7]} 5... f5
{[%clk 0:02:39.6]} 6. exf5 {[%clk 0:02:48.4]} 6... gxf5 {[%clk 0:02:41.5]} 7. f4
{[%clk 0:02:49.8]} 7... e4 {[%clk 0:02:35.8]} 8. Be3 {[%clk 0:02:48.9]} 8... Nf6
{[%clk 0:02:35.4]} 9. Be2 {[%clk 0:02:48.2]} 9... O-O {[%clk 0:02:31.8]} 10. Nh3
{[%clk 0:02:49.6]} 10... c5 {[%clk 0:02:22.3]} 11. Nf2 {[%clk 0:02:50.2]} 11...
a6 {[%clk 0:02:08.1]} 12. a4 {[%clk 0:02:50.8]} 12... Qe8 {[%clk 0:02:07]} 13.
Rg1 {[%clk 0:02:50.3]} 13... h5 {[%clk 0:02:02]} 14. h3 {[%clk 0:02:29]} 14...
h4 {[%clk 0:01:52.8]} 15. g4 {[%clk 0:02:30.2]} 15... hxg3 {[%clk 0:01:54.7]}
16. Rxg3 {[%clk 0:02:31.4]} 16... Kh7 {[%clk 0:01:29.8]} 17. Kd2 {[%clk
0:02:32.3]} 17... Rg8 {[%clk 0:01:20.1]} 18. h4 {[%clk 0:02:32.6]} 18... Bh6
{[%clk 0:01:08.9]} 19. Rg5 {[%clk 0:02:33.7]} 19... b6 {[%clk 0:00:32.5]} 20.
Qg1 {[%clk 0:02:34.8]} 20... Ra7 {[%clk 0:00:27.6]} 21. Qg3 {[%clk 0:02:31.1]}
21... Rag7 {[%clk 0:00:24.2]} 22. Rg1 {[%clk 0:02:31.1]} 22... Nbd7 {[%clk
0:00:20.6]} 23. h5 {[%clk 0:02:19]} 23... Ne5 {[%clk 0:00:08.7]} 24. b3 {[%clk
0:02:18.3]} 24... Bd7 {[%clk 0:00:05.1]} 25. Nh3 {[%clk 0:02:10.9]} 25... Neg4
{[%clk 0:00:05.8]} 26. Rxg7+ {[%clk 0:02:05.9]} 26... Rxg7 {[%clk 0:00:06.8]}
27. Ng5+ {[%clk 0:02:07.8]} 27... Kg8 {[%clk 0:00:04.4]} 28. Qh3 {[%clk
0:02:04.2]} 28... Nxe3 {[%clk 0:00:03.1]} 29. Kxe3 {[%clk 0:02:04.4]} 29... Ng4+
{[%clk 0:00:04.6]} 30. Bxg4 {[%clk 0:01:36.5]} 30... fxg4 {[%clk 0:00:06.5]} 31.
Qg3 {[%clk 0:01:38.4]} 31... b5 {[%clk 0:00:04.6]} 32. axb5 {[%clk 0:01:35.4]}
32... axb5 {[%clk 0:00:06.5]} 33. cxb5 {[%clk 0:01:37.2]} 33... Bf5 {[%clk
0:00:06.7]} 34. Ra1 {[%clk 0:01:33.5]} 34... Rb7 {[%clk 0:00:06.4]} 35. Kd2
{[%clk 0:01:25.7]} 35... Qxh5 {[%clk 0:00:05.7]} 36. Ra8+ {[%clk 0:01:09.7]}
36... Kg7 {[%clk 0:00:06.5]} 37. Nd1 {[%clk 0:01:11.6]} 37... Qg6 {[%clk
0:00:04.8]} 38. Qc3+ {[%clk 0:01:07.6]} 38... Qf6 {[%clk 0:00:04.6]} 39. Rg8+
{[%clk 0:01:08]} 39... Kxg8 {[%clk 0:00:05.8]} 40. Qxf6 {[%clk 0:01:09.5]} 1-0

[Event "*** Titled Tuesday Blitz"]
[Site "Chess.com"]
[Date "2020.02.04"]
[Round "7"]
[White "crescentmoon2411"]
[Black "Indianlad"]
[Result "0-1"]
[WhiteElo "2981"]
[BlackElo "2924"]
[TimeControl "180+2"]
[EndTime "10:35:06 PST"]
[Termination "Indianlad won by resignation"]

1. d4 {[%clk 0:03:01.9]} 1... Nf6 {[%clk 0:03:01.1]} 2. Nf3 {[%clk 0:03:02.8]}
2... d5 {[%clk 0:03:01.9]} 3. Bf4 {[%clk 0:03:03.5]} 3... Bf5 {[%clk 0:03:02]}
4. e3 {[%clk 0:03:04.7]} 4... e6 {[%clk 0:03:03.4]} 5. Be2 {[%clk 0:03:03.5]}
5... Bd6 {[%clk 0:03:04.1]} 6. Bg3 {[%clk 0:03:04.2]} 6... h6 {[%clk 0:03:02.3]}
7. O-O {[%clk 0:03:05]} 7... O-O {[%clk 0:03:03.1]} 8. c4 {[%clk 0:03:06.1]}
8... Bxg3 {[%clk 0:03:02.9]} 9. hxg3 {[%clk 0:03:06.9]} 9... dxc4 {[%clk
0:03:00.1]} 10. Bxc4 {[%clk 0:03:03.7]} 10... c5 {[%clk 0:02:58.2]} 11. dxc5
{[%clk 0:03:00.2]} 11... Qa5 {[%clk 0:02:52.4]} 12. Nc3 {[%clk 0:02:59.7]} 12...
Qxc5 {[%clk 0:02:53.1]} 13. Qd4 {[%clk 0:02:51.9]} 13... Nbd7 {[%clk 0:02:49.7]}
14. Qxc5 {[%clk 0:02:38]} 14... Nxc5 {[%clk 0:02:50.7]} 15. Rfd1 {[%clk
0:02:37.8]} 15... Rac8 {[%clk 0:02:48.7]} 16. Ne5 {[%clk 0:02:10.8]} 16... a6
{[%clk 0:02:35.9]} 17. Be2 {[%clk 0:02:02.6]} 17... Rfd8 {[%clk 0:02:34.3]} 18.
f3 {[%clk 0:01:56.4]} 18... g5 {[%clk 0:02:17.3]} 19. e4 {[%clk 0:01:55.3]}
19... Bh7 {[%clk 0:02:18.2]} 20. Rxd8+ {[%clk 0:01:44.8]} 20... Rxd8 {[%clk
0:02:19]} 21. b4 {[%clk 0:01:40.5]} 21... Ncd7 {[%clk 0:02:20.2]} 22. Rd1 {[%clk
0:01:40.1]} 22... Kf8 {[%clk 0:02:21.6]} 23. b5 {[%clk 0:01:25.2]} 23... axb5
{[%clk 0:02:14.9]} 24. Bxb5 {[%clk 0:01:24.6]} 24... Ke7 {[%clk 0:02:16.5]} 25.
Nxd7 {[%clk 0:01:19.3]} 25... Nxd7 {[%clk 0:02:17.3]} 26. Bxd7 {[%clk
0:01:07.5]} 26... Rxd7 {[%clk 0:02:18.4]} 27. Rxd7+ {[%clk 0:01:09]} 27... Kxd7
{[%clk 0:02:20]} 28. Kf2 {[%clk 0:01:09.9]} 28... f6 {[%clk 0:01:55.3]} 29. Ke3
{[%clk 0:01:06.7]} 29... Kd6 {[%clk 0:01:56.8]} 30. Kd4 {[%clk 0:01:06.7]} 30...
Bg6 {[%clk 0:01:56.5]} 31. Kc4 {[%clk 0:00:58.6]} 31... h5 {[%clk 0:01:39.9]}
32. Kb5 {[%clk 0:00:57.5]} 32... Be8+ {[%clk 0:01:25.4]} 33. Kb6 {[%clk
0:00:55.7]} 33... Bc6 {[%clk 0:01:26.8]} 34. Nb5+ {[%clk 0:00:39.6]} 34... Ke5
{[%clk 0:01:27.5]} 35. Na7 {[%clk 0:00:35.4]} 35... Ba4 {[%clk 0:01:28.5]} 36.
Kc5 {[%clk 0:00:21.6]} 36... h4 {[%clk 0:01:26.4]} 37. gxh4 {[%clk 0:00:21]}
37... gxh4 {[%clk 0:01:27.6]} 38. Nc8 {[%clk 0:00:17.8]} 38... Kf4 {[%clk
0:01:22.2]} 39. Ne7 {[%clk 0:00:18.7]} 39... Be8 {[%clk 0:01:10.6]} 40. Ng8
{[%clk 0:00:12.5]} 40... Kg3 {[%clk 0:01:04.4]} 41. Nxf6 {[%clk 0:00:13]} 41...
Bg6 {[%clk 0:01:04.7]} 0-1

[Event "*** Titled Tuesday Blitz"]
[Site "Chess.com"]
[Date "2020.02.04"]
[Round "7"]
[White "victormago"]
[Black "bazar-wokzal"]
[Result "0-1"]
[WhiteElo "2419"]
[BlackElo "2549"]
[TimeControl "180+2"]
[EndTime "10:35:14 PST"]
[Termination "bazar-wokzal won by resignation"]

1. d4 {[%clk 0:03:01.9]} 1... Nf6 {[%clk 0:03:00.4]} 2. c4 {[%clk 0:03:02.9]}
2... Nc6 {[%clk 0:03:01.4]} 3. Nf3 {[%clk 0:03:00.9]} 3... e6 {[%clk 0:03:02.5]}
4. a3 {[%clk 0:02:57.1]} 4... g6 {[%clk 0:03:03.6]} 5. Nc3 {[%clk 0:02:56.8]}
5... Bg7 {[%clk 0:03:04.6]} 6. e4 {[%clk 0:02:57.8]} 6... d5 {[%clk 0:03:04.8]}
7. e5 {[%clk 0:02:58.5]} 7... Ne4 {[%clk 0:03:05.4]} 8. Bd3 {[%clk 0:02:51.6]}
8... Nxc3 {[%clk 0:03:06.2]} 9. bxc3 {[%clk 0:02:52.3]} 9... dxc4 {[%clk
0:03:07.9]} 10. Bxc4 {[%clk 0:02:53.2]} 10... Na5 {[%clk 0:03:09.5]} 11. Ba2
{[%clk 0:02:50.7]} 11... c5 {[%clk 0:03:10.2]} 12. O-O {[%clk 0:02:51]} 12...
Bd7 {[%clk 0:03:10.2]} 13. Bg5 {[%clk 0:02:42.8]} 13... Qc7 {[%clk 0:03:11.1]}
14. d5 {[%clk 0:02:29.6]} 14... exd5 {[%clk 0:03:03.6]} 15. Bxd5 {[%clk
0:02:27.6]} 15... O-O {[%clk 0:02:59.1]} 16. Be7 {[%clk 0:02:09.9]} 16... Rfe8
{[%clk 0:02:52.5]} 17. Bd6 {[%clk 0:02:10.7]} 17... Qc8 {[%clk 0:02:45.9]} 18.
Ng5 {[%clk 0:02:00.5]} 18... Be6 {[%clk 0:02:41.2]} 19. Nxe6 {[%clk 0:01:59.9]}
19... fxe6 {[%clk 0:02:41.5]} 20. Ba2 {[%clk 0:01:57.7]} 20... c4 {[%clk
0:02:35.5]} 21. f4 {[%clk 0:01:51.7]} 21... b5 {[%clk 0:02:33.3]} 22. Rb1 {[%clk
0:01:50.9]} 22... Qc6 {[%clk 0:02:26.8]} 23. Qf3 {[%clk 0:01:43.3]} 23... a6
{[%clk 0:02:19.7]} 24. h4 {[%clk 0:01:32.2]} 24... Rac8 {[%clk 0:02:15.9]} 25.
Qg3 {[%clk 0:01:29.2]} 25... Nb7 {[%clk 0:02:11.2]} 26. Rbd1 {[%clk 0:01:22.9]}
26... Rcd8 {[%clk 0:02:06]} 27. Bb4 {[%clk 0:01:16.7]} 27... a5 {[%clk
0:02:06.1]} 28. Rxd8 {[%clk 0:01:17.3]} 28... Rxd8 {[%clk 0:02:06.6]} 29. Be7
{[%clk 0:01:18.4]} 29... Rd7 {[%clk 0:02:07.3]} 30. Bg5 {[%clk 0:01:03.1]} 30...
Nc5 {[%clk 0:02:07.8]} 31. Bb1 {[%clk 0:01:00]} 31... Ne4 {[%clk 0:01:56.7]} 32.
Qe3 {[%clk 0:00:46]} 32... Nd2 {[%clk 0:01:40.4]} 33. Re1 {[%clk 0:00:21.3]}
33... Bf8 {[%clk 0:01:36.5]} 34. Kh2 {[%clk 0:00:20.1]} 34... Bxa3 {[%clk
0:01:31.7]} 35. Bc2 {[%clk 0:00:17.6]} 35... Bc5 {[%clk 0:01:29.2]} 36. Qg3
{[%clk 0:00:18.7]} 36... b4 {[%clk 0:01:21.2]} 37. cxb4 {[%clk 0:00:18.9]} 37...
axb4 {[%clk 0:01:21.4]} 38. f5 {[%clk 0:00:15.2]} 38... b3 {[%clk 0:01:16.5]}
39. Bxd2 {[%clk 0:00:16.1]} 39... Rxd2 {[%clk 0:01:09.2]} 40. fxg6 {[%clk
0:00:15.2]} 40... bxc2 {[%clk 0:01:01.3]} 41. gxh7+ {[%clk 0:00:16]} 41... Kxh7
{[%clk 0:01:02.1]} 42. Rf1 {[%clk 0:00:13.8]} 42... Rxg2+ {[%clk 0:00:59.7]} 43.
Qxg2 {[%clk 0:00:14.3]} 43... Qxg2+ {[%clk 0:01:01.4]} 44. Kxg2 {[%clk
0:00:15.6]} 44... Be3 {[%clk 0:01:02.1]} 0-1

[Event "*** Titled Tuesday Blitz"]
[Site "Chess.com"]
[Date "2020.02.04"]
[Round "7"]
[White "manmanlai1"]
[Black "Misha_Bilous"]
[Result "1-0"]
[WhiteElo "2287"]
[BlackElo "2452"]
[TimeControl "180+2"]
[EndTime "10:35:15 PST"]
[Termination "manmanlai1 won by resignation"]

1. e4 {[%clk 0:03:01.9]} 1... c5 {[%clk 0:01:16.9]} 2. Nf3 {[%clk 0:03:01]} 2...
d6 {[%clk 0:01:17.9]} 3. c3 {[%clk 0:03:00.7]} 3... Nf6 {[%clk 0:01:18.7]} 4.
Be2 {[%clk 0:03:01.9]} 4... e6 {[%clk 0:01:19.2]} 5. O-O {[%clk 0:03:01.8]} 5...
Be7 {[%clk 0:01:20.8]} 6. Re1 {[%clk 0:03:03.2]} 6... O-O {[%clk 0:01:22.3]} 7.
Bf1 {[%clk 0:03:04.3]} 7... Nc6 {[%clk 0:01:23.2]} 8. d4 {[%clk 0:02:58.7]} 8...
d5 {[%clk 0:01:24.2]} 9. e5 {[%clk 0:02:57]} 9... Ne4 {[%clk 0:01:25.3]} 10. Bd3
{[%clk 0:02:58.1]} 10... f5 {[%clk 0:01:21.9]} 11. exf6 {[%clk 0:02:46.2]} 11...
Nxf6 {[%clk 0:01:22.9]} 12. Bf4 {[%clk 0:02:42.4]} 12... Qb6 {[%clk 0:01:19]}
13. Qd2 {[%clk 0:02:32.9]} 13... cxd4 {[%clk 0:00:59.7]} 14. cxd4 {[%clk
0:02:33.3]} 14... Nb4 {[%clk 0:01:00.9]} 15. Nc3 {[%clk 0:02:22]} 15... Nxd3
{[%clk 0:01:01.3]} 16. Qxd3 {[%clk 0:02:23.9]} 16... Qxb2 {[%clk 0:00:44.1]} 17.
Nb5 {[%clk 0:02:02.6]} 17... Ne4 {[%clk 0:00:27.8]} 18. Bg3 {[%clk 0:01:27.3]}
18... Bd7 {[%clk 0:00:21.5]} 19. a4 {[%clk 0:01:09.3]} 19... Rac8 {[%clk
0:00:06.5]} 20. Reb1 {[%clk 0:01:05]} 20... Qc2 {[%clk 0:00:06.7]} 21. Qxc2
{[%clk 0:00:57.9]} 21... Rxc2 {[%clk 0:00:08.1]} 22. Nxa7 {[%clk 0:00:59.4]}
22... Ra8 {[%clk 0:00:04.2]} 23. Nb5 {[%clk 0:00:59.2]} 23... Rc4 {[%clk
0:00:03.6]} 24. Ne5 {[%clk 0:00:54.8]} 24... Bxb5 {[%clk 0:00:02.7]} 25. axb5
{[%clk 0:00:46.7]} 25... Rxa1 {[%clk 0:00:04]} 26. Rxa1 {[%clk 0:00:47.4]} 26...
Rc8 {[%clk 0:00:05.5]} 27. f3 {[%clk 0:00:42.7]} 27... Nc3 {[%clk 0:00:06.3]}
28. b6 {[%clk 0:00:39.9]} 28... Ne2+ {[%clk 0:00:07.6]} 29. Kf2 {[%clk
0:00:40.9]} 29... Nxd4 {[%clk 0:00:09.2]} 30. Ra7 {[%clk 0:00:37.6]} 30... Bc5
{[%clk 0:00:05.4]} 31. Nd7 {[%clk 0:00:38.2]} 31... Nb5+ {[%clk 0:00:03.1]} 32.
Nxc5 {[%clk 0:00:38.4]} 32... Nxa7 {[%clk 0:00:04.1]} 33. bxa7 {[%clk
0:00:39.2]} 33... Ra8 {[%clk 0:00:05.7]} 34. Bb8 {[%clk 0:00:37.7]} 34... b6
{[%clk 0:00:05.7]} 35. Nxe6 {[%clk 0:00:38.6]} 35... Kf7 {[%clk 0:00:05.8]} 36.
Nc7 {[%clk 0:00:39.4]} 36... Rxa7 {[%clk 0:00:07.4]} 37. Bxa7 {[%clk 0:00:40.2]}
37... Ke7 {[%clk 0:00:09.3]} 38. Bxb6 {[%clk 0:00:40.4]} 38... Kd7 {[%clk
0:00:11.2]} 39. Ke3 {[%clk 0:00:40.8]} 39... Kc6 {[%clk 0:00:13.1]} 40. Ba5
{[%clk 0:00:41.5]} 1-0